Cogmind - Beta 16 @@@ ROGUE MODE // 2026.01.18 @ 20:31:47 Player: YoKa Result: Destroyed by Y-54 Guardian with Flak Gun Performance ------------- Evolutions (4) 2000 Regions Visited (7) 1400 Robots Destroyed (30) 150 Value Destroyed (1461) 1461 Prototype IDs (4) 80 Alien Tech Used (0) 0 Bonus (1402) 1402 TOTAL SCORE: 6493 Bonus ------- Follower Combat Kills 802 Met Imprinter 300 Was Imprinted 300 Cogmind --------- Core Integrity 0/850 Matter 300/300 Energy 350/350 System Corruption 2% Temperature Cool (6) Movement Core (100) Ox1 Location -6/Extension Parts ------- > --- POWER (3) -------- (None) > --- PROPULSION (3) --- (None) > --- UTILITY (6) ------ High-capacity Battery > --- WEAPON (3) ------- (None) > --- INVENTORY (5) ---- Medium Treads Advanced Heat Sink Improved Reaction Control System Light EM Pulse Cannon Peak State ------------ > --- POWER ------------ Light Angular Momentum Engine Fission Core Light Fission Core > --- PROPULSION ------- Armored Treads Medium Treads Medium Treads > --- UTILITY ---------- Advanced Heat Sink High-capacity Battery Makeshift Targeting Computer Tactical Coordination Suite Tactical Coordination Suite Hacking Drone Bay > --- WEAPON ----------- Heavy Beamcaster Phase Cannon Antimatter Cannon > --- INVENTORY -------- Improved Deuterium Engine Light EM Pulse Cannon Proton Cannon Particle Cannon Bore Cannon [Rating: 71] Favorites ----------- Power Makeshift Power Source Engine Makeshift Power Source Power Core Fission Core Reactor Antimatter Reactor Propulsion Aluminum Leg Treads Light Treads Leg Aluminum Leg Utility Tactical Coordination Suite Device Tactical Coordination Suite Storage High-capacity Battery Processor Makeshift Targeting Computer Weapon Particle Cannon Energy Gun Heavy Beamcaster Energy Cannon Particle Cannon Ballistic Gun Barrage Gun Ballistic Cannon Antimatter Cannon Build | -11 -10 -9 -9 -7 -6 -6 -6 ------- Run | Yrd Mat Mat Min Zio Pro Fac Ext Slots Evolved 8 | . . 2 . . . 6 . Power 2 | . . . . . . 2 . Propulsion 1 | . . . . . . 1 . Utility 4 | . . 2 . . . 2 . Weapon 1 | . . . . . . 1 . Parts Attached 46 | 5 7 4 . 4 4 16 6 Power 13 | 1 . 1 . 1 1 6 3 Engine 7 | 1 . 1 . 1 1 2 1 Core 4 | . . . . . . 4 . Reactor 2 | . . . . . . . 2 Propulsion 9 | 2 . . . . 2 3 2 Treads 7 | . . . . . 2 3 2 Leg 2 | 2 . . . . . . . Wheel . | . . . . . . . . Hover . | . . . . . . . . Flight . | . . . . . . . . Utility 11 | . 4 2 . 3 . 2 . Device 6 | . 2 . . 2 . 2 . Storage 1 | . 1 . . . . . . Processor 4 | . 1 2 . 1 . . . Hackware . | . . . . . . . . Protection . | . . . . . . . . Artifact . | . . . . . . . . Weapon 13 | 2 3 1 . . 1 5 1 Energy Gun 2 | 1 . . . . . 1 . Energy Cannon 5 | . 2 1 . . . 2 . Ballistic Gun 3 | 1 . . . . 1 . 1 Ballistic Cannon 3 | . 1 . . . . 2 . Launcher . | . . . . . . . . Special Weapon . | . . . . . . . . Impact Weapon . | . . . . . . . . Slashing Weapon . | . . . . . . . . Piercing Weapon . | . . . . . . . . Special Melee Weapon . | . . . . . . . . Unidentified Prototypes 2 | . . . . . . 2 . Corrupted Parts 1 | . . . . . . 1 . System Corruption 2 | . . . . . . 2 . Parts Lost 24 | . 1 . . . 1 3 19 Power 7 | . . . . . . 1 6 Propulsion 6 | . . . . . 1 1 4 Utility 6 | . 1 . . . . . 5 Weapon 5 | . . . . . . 1 4 Highest Loss Streak 13 | . 1 . . . 1 3 13 To Critical Strikes . | . . . . . . . . Average Backups 4 | . 2 4 5 4 4 2 3 Power . | . . . . . . . . Propulsion . | . . . . . . . . Utility 1 | . . 1 2 1 1 . 2 Weapon 2 | . 1 2 3 3 3 1 1 Tool/Special . | . . . . . . . . Unused Backups 8 | . 1 . . 4 1 . 2 Power . | . . . . . . . . Propulsion . | . . . . . . . . Utility 6 | . . . . 3 1 . 2 Weapon 2 | . 1 . . 1 . . . Tool/Special . | . . . . . . . . Average Slot Usage (%) 93 | . 92 99 100 100 91 88 76 Engine 9 | . 14 11 11 11 11 5 1 Core 2 | . . . . . . 9 12 Treads 6 | . . . . . 11 17 14 Leg 12 | . 28 22 22 22 3 . . Device 20 | . 13 . . 21 22 23 20 Storage 9 | . 4 11 11 11 11 6 6 Processor 10 | . 3 32 33 11 11 6 4 Energy Gun 1 | . 7 . . . . 2 4 Energy Cannon 15 | . 8 15 22 22 13 6 4 Ballistic Gun 2 | . 7 . . . 8 1 1 Ballistic Cannon 1 | . 4 6 . . . 5 4 Peak Build Rating 71 | 5 9 11 11 25 26 71 71 Average Rating 29 | 3 7 10 11 23 25 58 51 On Entrance 19 | . 5 8 11 11 25 26 71 Avg Prop Armor Cover (%) 7 | . . . . . 7 . . Naked Turns . | . . . . . . . . Heaviest Build 67 | 7 15 17 17 27 36 67 64 Greatest Support 76 | 20 20 20 20 20 40 76 76 Greatest Overweight (x) 11 | . . . . 1 1 2 11 Average Overweight (x) . | . . . . . . . . Largest Inventory Capacity 5 | 5 5 5 5 5 5 5 5 Average Capacity 5 | 5 5 5 5 5 5 5 5 Most Carried 5 | 3 5 5 5 5 5 5 5 Average Carried 4 | . 2 3 5 4 4 2 3 Final Capacity 5 | 5 5 5 5 5 5 5 5 Final Carried 5 | 3 5 5 5 5 5 3 4 Class Distribution -------------------- 60% | Derelict-Mutant 19% | Mutant 15% | Scavenger-Gunner Dominant Class ---------------- Mutant | -10/Materials Mutant | -9/Materials Mutant | -9/Mines Derelict-Mutant | -7/Zion Derelict-Mutant | -6/Proximity Caves Scavenger-Gunner | -6/Factory Scavenger-Gunner | -6/Extension Resources | -11 -10 -9 -9 -7 -6 -6 -6 ----------- Run | Yrd Mat Mat Min Zio Pro Fac Ext Matter Collected 1142 | 256 95 28 24 40 78 316 305 Remotely . | . . . . . . . . Salvage Created 1210 | 32 147 26 . . 321 401 283 Parts 53 | 4 2 2 . . 15 10 20 Haulers Intercepted . | . . . . . . . . Recyclers Shooed . | . . . . . . . . Parts Field Recycled . | . . . . . . . . Retrieved Matter . | . . . . . . . . Parts Self-Destructed 24 | . . . . . 24 . . Prevented 16 | . . . . . 16 . . Parts Restored . | . . . . . . . . Kills | -11 -10 -9 -9 -7 -6 -6 -6 ------- Run | Yrd Mat Mat Min Zio Pro Fac Ext Combat Hostiles Destroyed 27 | 1 3 1 . . 6 8 8 Guns 8 | 1 2 . . . 2 . 3 Cannons 16 | . . 1 . . 4 6 5 AOE 1 | . . . . . . 1 . Classes Destroyed 6 | 1 . . . . 3 . 2 Builder 3 | . . . . . . . 3 Swarmer 2 | . . . . . 2 . . Grunt 17 | 1 3 1 . . 1 8 3 Brawler 2 | . . . . . 2 . . Sentry 4 | . . . . . 1 . 3 Behemoth 2 | . . . . . . . 2 Best Kill Streak 4 | 1 2 1 . . 3 4 4 Combat Bots Only 4 | 1 2 1 . . 3 4 3 Max Kills in Single Turn 1 | 1 1 1 . . 1 1 1 Gunslinging . | . . . . . . . . Exploded 1 | . . . . . . 1 . Melee . | . . . . . . . . Uniques/NPCs Destroyed . | . . . . . . . . Combat | -11 -10 -9 -9 -7 -6 -6 -6 -------- Run | Yrd Mat Mat Min Zio Pro Fac Ext Hostile Shots Fired 378 | 2 22 6 . . 33 54 261 Missed 137 | 1 6 4 . . 8 15 103 Hits 241 | 1 16 2 . . 25 39 158 Melee 1 | . . . . . 1 . . Projectile 240 | 1 16 2 . . 24 39 158 Critical Strikes 6 | . . . . . 1 2 3 Damage Taken 4091 | 12 230 21 . . 382 972 2474 Core 939 | . 17 . . . 70 110 742 Absorbed by Shields . | . . . . . . . . Core Remaining (%) 91 | 100 93 . . . 82 . . Volleys Fired 114 | 2 14 4 . . 11 31 52 Largest 3 | 2 2 2 . . 2 3 3 Hottest 199 | 60 112 124 . . 124 199 199 Shots Fired 193 | 4 26 8 . . 21 48 86 Gun 70 | 4 20 . . . 7 9 30 Cannon 123 | . 6 8 . . 14 39 56 Launcher . | . . . . . . . . Special . | . . . . . . . . Kinetic 104 | 2 10 3 . . 7 34 48 Thermal 59 | . . 1 . . 10 10 38 Explosive . | . . . . . . . . Electromagnetic 30 | 2 16 4 . . 4 4 . Robot Hit Streak 46 | 2 8 2 . . 9 15 46 Robot Miss Streak 3 | 1 2 2 . . 1 3 2 Penetration Max . | . . . . . . . . Secondary Targets 1 | . 1 . . . . . . Max Gunslinging Chain 1 | . 1 . . . . . . Shots Hit Robots 155 | 2 20 4 . . 17 37 75 Core Hits 67 | 2 5 1 . . 12 18 29 Critical Kills 3 | . . . . . . 3 . Critical Parts Destroyed 5 | . . . . . . 5 . Critical Strikes 12 | . 1 . . . . 8 3 Burn 1 | . . . . . . . 1 Destroy 8 | . . . . . . 8 . Blast 2 | . . . . . . . 2 Corrupt 1 | . 1 . . . . . . Melee Attacks . | . . . . . . . . Impact . | . . . . . . . . Slashing . | . . . . . . . . Piercing . | . . . . . . . . Sneak Attacks . | . . . . . . . . Combat Hostiles . | . . . . . . . . Follow-up Attacks . | . . . . . . . . Damage Inflicted 4469 | 39 406 83 . . 338 1245 2358 Guns 970 | 39 186 . . . 77 117 551 Cannons 3115 | . 112 83 . . 261 904 1755 Explosions 314 | . 108 . . . . 206 . Melee . | . . . . . . . . Ramming 70 | . . . . . . 18 52 Kinetic 2295 | 24 108 36 . . 77 724 1326 Thermal 1550 | . 108 . . . 205 257 980 Explosive . | . . . . . . . . Electromagnetic 554 | 15 190 47 . . 56 246 . Impact . | . . . . . . . . Slashing . | . . . . . . . . Piercing . | . . . . . . . . Highest Corruption 4 | . . . . . 4 2 2 Average Corruption 2 | . . . . . 4 2 2 Corruption Purged . | . . . . . . . . Corruption Blocked . | . . . . . . . . Effects 38 | . . . . . 18 8 12 Message Errors 9 | . . . . . 5 1 3 Matter Fused 6 | . . . . . 2 2 2 Heat Flow Errors 7 | . . . . . 2 2 3 Energy Discharges 7 | . . . . . 4 2 1 Data Loss (minor) 8 | . . . . . 5 1 2 Misfires 1 | . . . . . . . 1 Overload Shots . | . . . . . . . . Overflow Damage 25 | . . . . . . 5 20 Projectiles 25 | . . . . . . 5 20 Explosions . | . . . . . . . . Melee . | . . . . . . . . Knockbacks 20 | . . 1 . . . 14 5 Impact 1 | . . . . . . 1 . Kinetic 16 | . . 1 . . . 10 5 Secondary 3 | . . . . . . 3 . Self-Inflicted Damage 67 | . 30 . . . . 36 1 Shots 2 | . 1 . . . . 1 . Rammed 6 | . . . . . . 1 5 Targets Rammed 8 | . . . . . . 1 7 Kicked . | . . . . . . . . Crushed 2 | . . . . . . . 2 Highest Temperature 377 | 6 23 67 . . 227 377 357 Average Temperature 131 | 6 16 24 . . 82 192 139 Received Heat Transfer 1265 | 6 111 12 . . 29 330 777 Effects 7 | . . . . . 1 5 1 Shutdowns 1 | . . . . . . 1 . Energy Bleed 3 | . . . . . . 2 1 Interference 1 | . . . . . 1 . . Short Circuit 2 | . . . . . . 2 . Siege Activations . | . . . . . . . . Martial Activations . | . . . . . . . . Shielding Activations . | . . . . . . . . Robots Disrupted 1 | . . . . . . 1 . Combat Hostiles 1 | . . . . . . 1 . Robots Corrupted 2 | . 1 . . . . 1 . Combat Hostiles 2 | . 1 . . . . 1 . Parts Fried 2 | . . . . . . 2 . Impact Corruptions . | . . . . . . . . Robots Melted . | . . . . . . . . Combat Hostiles . | . . . . . . . . Parts Melted 1 | . . . . . 1 . . Heat Transferred 2185 | . 100 . . . 370 346 1369 Parts Sabotaged . | . . . . . . . . Parts Stolen . | . . . . . . . . Parts Stripped . | . . . . . . . . Power Chain Reactions 1 | . 1 . . . . . . Alert | -11 -10 -9 -9 -7 -6 -6 -6 ------- Run | Yrd Mat Mat Min Zio Pro Fac Ext Maximum Alert Level 1 | . . . . . . 1 1 Low Security (%) 78 | 100 100 100 100 . . 65 70 Level 1 21 | . . . . . . 34 29 Level 2 . | . . . . . . . . Level 3 . | . . . . . . . . Level 4 . | . . . . . . . . Level 5 . | . . . . . . . . High Security . | . . . . . . . . Max Security . | . . . . . . . . Peak Influence 320 | 20 59 30 . . . 252 320 Initial 104 | . 6 . . . . 104 91 Average 106 | 3 14 5 . . . 149 161 Influence Increases 1838 | 20 115 30 . . 582 492 599 Destroy 0b10 Robot/C 1000 | 20 60 20 . . 400 180 320 Destroy 0b10 Robot/NC 25 | . . . . . . . 25 Destroy Leader 144 | . 20 10 . . 30 30 54 Allied During Kill 293 | . . . . . 152 15 126 Successful Hack 1 | . 1 . . . . . . Select Force Hacks 30 | . . . . . . 30 . Disable Machine 150 | . 15 . . . . 135 . Destroy Structure 45 | . 4 . . . . 27 14 Lose Combat Pursuer 150 | . 15 . . . . 75 60 Influence Decreases 1696 | 10 125 30 . . 416 470 645 Entered New Map 163 | . 4 . . . . 62 97 Time Decay 1174 | 10 112 30 . . 386 318 318 Lost Part 239 | . 9 . . . 10 30 190 Lost Ally 120 | . . . . . 20 60 40 Squads Dispatched 9 | . 1 1 . . . 2 5 Investigation 4 | . . . . . . 1 3 Extermination 1 | . . . . . . 1 . Reinforcement 4 | . 1 1 . . . . 2 Assault . | . . . . . . . . Garrison . | . . . . . . . . Intercept . | . . . . . . . . Searches Triggered . | . . . . . . . . Construction Impeded 2 | . . . . . . . 2 Haulers Reinforced . | . . . . . . . . Active Scanning Responses . | . . . . . . . . Cargo Convoy Interrupts . | . . . . . . . . Stealth | -11 -10 -9 -9 -7 -6 -6 -6 --------- Run | Yrd Mat Mat Min Zio Pro Fac Ext Distress Signals 3 | . . . . . . . 3 Communications Jammed . | . . . . . . . . Distress Signals . | . . . . . . . . Times Spotted 73 | 1 5 3 . . 21 16 27 Peak Tracking Total 9 | 1 2 1 . . 9 5 6 Tactical Retreats 7 | . 1 . . . . 4 2 Traps | -11 -10 -9 -9 -7 -6 -6 -6 ------- Run | Yrd Mat Mat Min Zio Pro Fac Ext Traps Triggered 1 | . . . . . . . 1 Indirectly . | . . . . . . . . Trap Hack Attempts . | . . . . . . . . Triggered . | . . . . . . . . Disarmed . | . . . . . . . . Reprogrammed . | . . . . . . . . Reused . | . . . . . . . . Traps Extracted . | . . . . . . . . Installed . | . . . . . . . . Triggered . | . . . . . . . . Machines | -11 -10 -9 -9 -7 -6 -6 -6 ---------- Run | Yrd Mat Mat Min Zio Pro Fac Ext Machines Disabled 10 | . 1 . . . . 9 . Max in Single Turn 4 | . 1 . . . . 4 . Machines Repaired . | . . . . . . . . Machines Dismantled . | . . . . . . . . Machines Sabotaged . | . . . . . . . . Overloaded Fab Kills . | . . . . . . . . Hacking | -11 -10 -9 -9 -7 -6 -6 -6 --------- Run | Yrd Mat Mat Min Zio Pro Fac Ext Machines Accessed 3 | . 1 1 . . . 1 . Terminals 1 | . . 1 . . . . . Fabricators . | . . . . . . . . Repair Stations . | . . . . . . . . Recycling Units 2 | . 1 . . . . 1 . Scanalyzers . | . . . . . . . . Garrison Access . | . . . . . . . . Total Hacks 13 | . 7 5 . . . 1 . Successful 8 | . 6 1 . . . 1 . Failed 5 | . 1 4 . . . . . Catastrophic . | . . . . . . . . Database Lockouts . | . . . . . . . . Manual 9 | . . . . . . 7 2 Terminals 5 | . . 5 . . . . . Fabricators . | . . . . . . . . Repair Stations . | . . . . . . . . Recycling Units 8 | . 7 . . . . 1 . Scanalyzers . | . . . . . . . . Garrison Access . | . . . . . . . . Terminal Hacks 1 | . . 1 . . . . . Prototype ID Bank 1 | . . 1 . . . . . Fabricator Hacks . | . . . . . . . . Repair Station Hacks . | . . . . . . . . Recycling Unit Hacks 6 | . 6 . . . . . . Recycle Component 2 | . 2 . . . . . . Process 2 | . 2 . . . . . . Report Inventory 2 | . 2 . . . . . . Scanalyzer . | . . . . . . . . Garrison Access Hacks . | . . . . . . . . Unauthorized Hacks 1 | . . . . . . 1 . Terminals . | . . . . . . . . Fabricators . | . . . . . . . . Repair Stations . | . . . . . . . . Recycling Units 1 | . . . . . . 1 . Tunnel 1 | . . . . . . 1 . Scanalyzers . | . . . . . . . . Garrison Access . | . . . . . . . . Data Cores Recovered . | . . . . . . . . Used . | . . . . . . . . Hacking Detections 3 | . 1 1 . . . 1 . Full Trace Events 1 | . 1 . . . . . . Feedback Events . | . . . . . . . . Feedback Blocked . | . . . . . . . . Robot Schematics Acquired . | . . . . . . . . Robots Built . | . . . . . . . . Authchips . | . . . . . . . . Time . | . . . . . . . . Total Robot Build Rating . | . . . . . . . . Part Schematics Acquired . | . . . . . . . . Parts Built . | . . . . . . . . Authchips . | . . . . . . . . Time . | . . . . . . . . Total Part Build Rating . | . . . . . . . . Part Studies Acquired . | . . . . . . . . Parts Repaired . | . . . . . . . . Time . | . . . . . . . . Parts Recycled 2 | . 2 . . . . . . Recycled Matter 63 | . 63 . . . . . . Retrieved Matter . | . . . . . . . . Retrieved Components . | . . . . . . . . Parts Scanalyzed . | . . . . . . . . Part Schematics Acquired . | . . . . . . . . Parts Damaged . | . . . . . . . . Bothacking | -11 -10 -9 -9 -7 -6 -6 -6 ------------ Run | Yrd Mat Mat Min Zio Pro Fac Ext Used RIF Installer . | . . . . . . . . Robots Hacked . | . . . . . . . . Non-combat . | . . . . . . . . Combat . | . . . . . . . . Robot Hacks Applied . | . . . . . . . . Relay Couplers Released . | . . . . . . . . Fabnet Peak Effective % . | . . . . . . . . Robots Rewired . | . . . . . . . . Allies Hacked . | . . . . . . . . Hacks Repelled . | . . . . . . . . Allies | -11 -10 -9 -9 -7 -6 -6 -6 -------- Run | Yrd Mat Mat Min Zio Pro Fac Ext Total Allies 6 | . . . . 4 . 2 . Largest Group 4 | . . . . 4 4 3 2 Highest-Rated Group 192 | . . . . 148 148 192 192 Highest-Rated Ally 96 | . . . . 39 39 96 96 Total Orders 3 | . . . . . . 2 1 FOLLOW 1 | . . . . . . 1 . RETURN 2 | . . . . . . 1 1 Ally Attacks 81 | . . . . . 39 6 36 Total Damage 2621 | . . . . . 1079 195 1347 Kills 25 | . . . . . 14 1 10 Allies Corrupted . | . . . . . . . . Allies Melted 1 | . . . . . . . 1 Intel | -11 -10 -9 -9 -7 -6 -6 -6 ------- Run | Yrd Mat Mat Min Zio Pro Fac Ext Active Infowar (turns) . | . . . . . . . . Robot Analysis Total . | . . . . . . . . Derelict Logs Recovered 1 | . . . . . 1 . . Drone Launches 5 | . . . . . . 4 1 Drone Recoveries 5 | . . . . . . 4 1 Exploration | -11 -10 -9 -9 -7 -6 -6 -6 ------------- Run | Yrd Mat Mat Min Zio Pro Fac Ext Turns Passed 6133 | 86 431 137 71 2559 1423 718 708 Spaces Moved 3090 | 65 293 99 60 1332 598 335 308 Core 63 | 15 . . . . . . 48 Treads 1159 | . . . . . 564 335 260 Legs 1868 | 50 293 99 60 1332 34 . . Wheels . | . . . . . . . . Hover . | . . . . . . . . Flight . | . . . . . . . . Fastest Speed 50 | 50 120 120 120 120 160 160 100 Average Speed 179 | 103 120 120 120 186 227 170 169 Slowest Speed 600 | 120 120 120 120 190 240 320 600 Overloaded Moves . | . . . . . . . . Propulsion Burnouts . | . . . . . . . . Robots Hopped . | . . . . . . . . Potential Cave-ins . | . . . . . . . . Cave-ins Triggered . | . . . . . . . . Exploration Rate (%) 38 | 5 37 8 17 91 90 8 50 Regions Visited 7 Branch Regions 4 Pre-discovered Areas 3 | . . . . 1 1 1 . Known Exits Taken 2 | . . 1 1 . . . . Unknown Exits Taken 5 | 1 1 . . 1 1 1 . Scrap Searched 4 | . . . . 3 1 . . Spaces Dug . | . . . . . . . . Terrain Destroyed 33 | . 3 . . . . 26 4 Melee . | . . . . . . . . Projectile 10 | . . . . . . 6 4 AOE 23 | . 3 . . . . 20 . Terrain Rammed . | . . . . . . . . Walls Destroyed . | . . . . . . . . Machines Disabled . | . . . . . . . . Actions | -11 -10 -9 -9 -7 -6 -6 -6 --------- Run | Yrd Mat Mat Min Zio Pro Fac Ext Total 3493 | 79 346 109 59 1413 638 438 411 Wait 163 | . 20 . . 56 22 32 33 Move 3083 | 64 292 98 59 1331 597 334 308 Hop . | . . . . . . . . Pick Up 52 | 8 10 2 . 12 2 13 5 Fast Attach 2 | . . . . . 1 . 1 Attach 25 | 5 3 2 . 1 . 10 4 Detach 1 | . . . . 1 . . . Swap 22 | . 4 2 . 3 3 9 1 Drop 23 | . 3 1 . 9 2 8 . Fire 114 | 2 14 4 . . 11 31 52 Melee . | . . . . . . . . Ram 2 | . . . . . . . 2 Kick . | . . . . . . . . Crush 6 | . . . . . . 1 5 Escape Stasis . | . . . . . . . . Rewire . | . . . . . . . . Trap . | . . . . . . . . Miscellaneous . | . . . . . . . . Route ------- -11/Scrapyard -10/Materials -9/Materials -9/Mines -7/Zion -6/Proximity Caves -6/Factory -6/Extension History --------- Turn | Location | Event 2 | -11/Scrapyard | Met Revision 17 59 | -11/Scrapyard | Discovered new exit (range 8) 87 | -11/Scrapyard | Entered Materials 303 | -10/Materials | Build established: Mutant 314 | -10/Materials | Discovered new exit (range 4) 518 | -10/Materials | Entered another Materials area 518 | -9/Materials | Evolved 2 slots: Utility x2 520 | -9/Materials | Discovered new exit (range 15) 543 | -9/Materials | Identified exit to Mines 655 | -9/Materials | Entered Mines 712 | -9/Mines | A Derelict revealed a hidden shortcut to a safe place 725 | -9/Mines | Identified exit to Zion 726 | -9/Mines | Entered Zion 1194 | -7/Zion | Learned location of Storage (-7) 1401 | -7/Zion | Build established: Derelict-Mutant 1678 | -7/Zion | Given A8's code to call for help 1895 | -7/Zion | Given the Hacking Drone Bay 1903 | -7/Zion | Found Prototype Device 2007 | -7/Zion | Met Imprinter 2046 | -7/Zion | Imprinted 2048 | -7/Zion | Declared Zion's savior 3245 | -7/Zion | Discovered new exit (range 16) 3285 | -7/Zion | Entered Proximity Caves 3285 | -6/Proximity Caves | Accompanied by 4 allies 3321 | -6/Proximity Caves | Attracted the attention of an 0b10 checkpoint 3613 | -6/Proximity Caves | Attracted the attention of an 0b10 outpost 4575 | -6/Proximity Caves | Discovered new exit (range 8) 4708 | -6/Proximity Caves | Entered Factory 4708 | -6/Factory | Accompanied by 3 allies 4708 | -6/Factory | Evolved 6 slots: Power x2, Propulsion x1, Utility x2, Weapon x1 4708 | -6/Factory | Identified Hacking Drone Bay 4712 | -6/Factory | Identified exit to DSF 4876 | -6/Factory | Lost 3 allies 4900 | -6/Factory | Lost 3 parts (1p1n1w) 5187 | -6/Factory | Build established: Scavenger-Gunner 5230 | -6/Factory | Discovered new exit (range 11) 5242 | -6/Factory | Enhanced Grunt warped into view, answering call for help 5255 | -6/Factory | Enhanced Grunt warped into view, answering call for help 5426 | -6/Factory | Entered Extension 5426 | -6/Extension | Accompanied by 2 allies 5505 | -6/Extension | Rescued a captive Derelict 5820 | -6/Extension | Spotted B-75 Beast 5871 | -6/Extension | Destroyed B-75 Beast 5879 | -6/Extension | Spotted B-75 Beast 5911 | -6/Extension | Destroyed B-75 Beast 5923 | -6/Extension | Core integrity fell below 50% 5961 | -6/Extension | Lost 13 parts (4p3n3u3w) 6094 | -6/Extension | Core integrity fell below 20% 6119 | -6/Extension | Lost 6 parts (2p1n2u1w) 6134 | -6/Extension | Destroyed by Y-54 Guardian with Flak Gun Last Messages --------------- R-10 Processor collects Lgt. Deuterium Engine. System corrupted: Energy discharge (-237). System corrupted: FCS attempts to trigger Hvy. Assault Rifle. System corrupted: Hvy. Assault Rifle misfires. W-25 Informer sends out distress signal. System corrupted: Component data lost. Adv. Heat Sink destroyed. Hvy. Assault Rifle destroyed. Lgt. Treads destroyed. Tactical Coordination Suite destroyed. Imp. Deuterium Engine destroyed. Antimatter Reactor destroyed. Slammed into W-25 Informer. Slammed into R-10 Processor. Detecting system override signal. ALERT: Suspicious activity at Terminal E009. Dispatching Investigation squad. PZDBD5X FW>BP&5C3Q,E5NVS [Achievement: 5k Club] Map ----- +----------------------------------------------------+ | | | | | | | | | | | | | | | | | | | | | | | | | | | ?????????????????????????????????????????????????? | | ?????????????????????????????????????????????????? | | ????????????????#######??????????????????????????? | | ????????????????# #??????????????????????????? | | ################# #??????????????????????????? | | % #??????????????????????????? | | ################# #??????????????????????????? | | ????????????????# #??????????????????????????? | | ???????????????### ##??????????????????????????? | | ???????????????#"" #???????????????????????????? | | ???????????????#T #???????##??????????????????? | | ???????????????### ###### # #???????????? | | ?????????????????# Y @R /A #???????????? | | ?????????????????##+####### # #???????????? | | ?????????????????# T#???????##??????????????????? | | ?????????????????##"##???????????????????????????? | | ##### #????????????????????????????????????????? | | ! #????????????????????????????????????????? | | ##### #????????????????????????????????????????? | | ?????????????????????????????????????????????????? | | ?????????????????????????????????????????????????? | | ?????????????????????????????????????????????????? | | ###??????????????????????????????????????????????? | | #??????????????????????????????????????????????? | | #??????????????????????????????????????????????? | | #??????????????????????????????????????????????? | | #??????????????????????????????????????????????? | | ###??????????????????????????????????????????????? | | ?????????????????????????????????????????????????? | | ?????????????????????????????????????????????????? | | ?????????????????????????????????????????????????? | | ?????????????????????????????????????????????????? | | ?????????????????????????????????????????????????? | | ?????????????????????????????????????????????????? | | ?????????????????????????????????????????????????? | | ?????????????????????????????????????????????????? | | ?????????????????????????????????????????????????? | +----------------------------------------------------+ Best States ------------- Heat Dissipation 56 Energy Generation 44 Energy Capacity 980 Matter Stores 300 Matter Capacity 300 Sight Range 16 Terrain Scan Density 10 Evasion (%) 55 Targeting Accuracy 10 Recoil Reduction 3 Item Schematics ----------------- None Robot Schematics ------------------ None Fabricated ------------ Nothing Repaired ---------- Nothing Studied --------- None Alien Tech Used ----------------- None Achievements -------------- 5k Club A Problem For Future Me Brute Force Bumper Bots DATA ERROR: Steam Global Achievement% Ghost 'Em Help From High Places I Have A Map? I'm Back, Baby! Made in Tau Ceti IV Power Corrupts Robot Respite Serviceable Loadout The One Tourist Challenges ------------ None Game ------ Seed SapperLayeredCrosscalibrator Manual? 0 Play Time 01:31:50 Cumulative 2.2 hours Start 2026.01.18 @ 18:06:20 End 2026.01.18 @ 20:31:47 Sessions 3 Manual Loads 0 Difficulty Rogue Special Mode None Game No. 2 Rogue 2 Adventurer 0 Explorer 0 Win Type - Total 0 Types 0/0/0/0/0/0/0/0/0/0 Lore% 2 Gallery% 3 Achievement% 5 Wizard Run 0 Options --------- Layout 2 ASCII 0 Keyboard 0 Movement Mouse Keybinds 0 Fullscreen 1 Font 24/Smallcaps Map View 50x44 Zoom Use 0% Tactical HUD 0 Map Filters NONE Filters NONE Steam 1 RUN: 0c084626-2807-4810-bbb4-2895b63f054e